Cogmind - Beta 10.2 @@@ ROGUE MODE // 2021.05.01 @ 20:57:32 Player: athros Result: Smashed by cave-in Performance ------------- Evolutions (1) 500 Regions Visited (3) 600 Robots Destroyed (48) 240 Value Destroyed (1152) 1152 Prototype IDs (1) 20 Alien Tech Used (0) 0 Bonus (80) 80 TOTAL SCORE: 2592 Bonus ------- High Alert Combat Kills 80 Cogmind --------- Core Integrity 0/400 Matter 300/300 Energy 81/100 System Corruption 2% Temperature Cool (0) Movement Treading (160) Location -9/Storage Parts ------- > --- POWER (2) -------- (None) > --- PROPULSION (3) --- Light Treads > --- UTILITY (2) ------ (None) > --- WEAPON (2) ------- Small Laser Heavy Assault Rifle > --- INVENTORY (4) ---- Advanced Beam Cannon Mining Claw Peak State ------------ > --- POWER ------------ Ion Engine Improved Ion Engine > --- PROPULSION ------- Flight Unit Flight Unit VTOL Module > --- UTILITY ---------- Improved Sensor Array Improved Signal Interpreter > --- WEAPON ----------- Improved EM Shotgun Improved EM Shotgun > --- INVENTORY -------- Advanced Beam Cannon Rocket Launcher Mining Claw [Rating: 17] Favorites ----------- Power Ion Engine Engine Ion Engine Propulsion Flight Unit Treads Light Treads Wheel Wheel Flight Unit Flight Unit Utility Improved Signal Interpreter Device Improved Sensor Array Storage Small Storage Unit Processor Improved Signal Interpreter Weapon Small Laser Energy Gun Small Laser Ballistic Gun Heavy Assault Rifle Launcher Rocket Launcher Build | -11 -10 -9 -9 ------- Run | Scr Mat Mat Sto Slots Evolved 2 | . . 2 . Power 1 | . . 1 . Propulsion 1 | . . 1 . Utility . | . . . . Weapon . | . . . . Parts Attached 37 | 5 14 4 14 Power 7 | 1 2 1 3 Engine 7 | 1 2 1 3 Core . | . . . . Reactor . | . . . . Propulsion 11 | 2 3 2 4 Treads 1 | . . . 1 Leg . | . . . . Wheel 3 | 2 1 . . Hover . | . . . . Flight 7 | . 2 2 3 Utility 5 | . 5 . . Device 3 | . 3 . . Storage 1 | . 1 . . Processor 1 | . 1 . . Hackware . | . . . . Protection . | . . . . Artifact . | . . . . Weapon 14 | 2 4 1 7 Energy Gun 11 | 2 4 1 4 Energy Cannon . | . . . . Ballistic Gun 2 | . . . 2 Ballistic Cannon . | . . . . Launcher 1 | . . . 1 Special Weapon . | . . . . Impact Weapon . | . . . . Slashing Weapon . | . . . . Piercing Weapon . | . . . . Special Melee Weapon . | . . . . Unidentified Prototypes 1 | . . . 1 Parts Lost 24 | . 6 2 16 Power 4 | . 1 . 3 Propulsion 7 | . 1 1 5 Utility 3 | . 1 . 2 Weapon 10 | . 3 1 6 Highest Loss Streak 14 | . 6 1 14 Average Slot Usage (%) 76 | . 78 86 70 Engine 12 | . 12 13 12 Wheel 6 | . 11 . . Flight 19 | . 14 30 22 Device 9 | . 11 11 7 Processor 5 | . 1 11 11 Energy Gun 20 | . 26 19 13 Naked Turns . | . . . . Heaviest Build 19 | 7 12 13 19 Greatest Support 26 | 20 26 12 13 Greatest Overweight (x) 1 | . 1 1 1 Average Overweight (x) . | . . . . Largest Inventory Capacity 6 | 4 6 4 4 Average Capacity 4 | 4 4 4 4 Most Carried 5 | 2 5 4 4 Average Carried 2 | . 3 2 2 Final Capacity 4 | 4 4 4 4 Final Carried 4 | 1 4 2 2 Class Distribution -------------------- 100% | Mutant Dominant Class ---------------- Mutant | -10/Materials Mutant | -9/Materials Mutant | -9/Storage Resources | -11 -10 -9 -9 ----------- Run | Scr Mat Mat Sto Matter Collected 606 | 250 120 55 181 Remotely . | . . . . Salvage Created 1816 | 59 647 166 944 Parts 119 | 4 42 9 64 Haulers Intercepted 3 | . 1 1 1 Recyclers Shooed . | . . . . Parts Field Recycled . | . . . . Retrieved Matter . | . . . . Parts Self-Destructed . | . . . . Prevented . | . . . . Kills | -11 -10 -9 -9 ------- Run | Scr Mat Mat Sto Combat Hostiles Destroyed 31 | 1 9 2 19 Guns 27 | 1 8 2 16 AOE 3 | . 1 . 2 Classes Destroyed 10 | 2 7 1 . Worker 4 | . 3 . 1 Builder 2 | . 1 . 1 Tunneler 1 | 1 . . . Hauler 3 | . 1 1 1 Recycler 3 | . 2 . 1 Operator 2 | . 1 . 1 Watcher 2 | . 1 . 1 Swarmer 7 | . 3 . 4 Grunt 16 | 1 6 . 9 Sentry 8 | . . 2 6 Best Kill Streak 20 | 2 4 2 20 Combat Bots Only 9 | 1 3 1 9 Max Kills in Single Turn 2 | 1 1 1 2 Gunslinging . | . . . . Exploded 2 | . 1 . 2 Melee . | . . . . Uniques/NPCs Destroyed . | . . . . Combat | -11 -10 -9 -9 -------- Run | Scr Mat Mat Sto Damage Taken 1773 | 30 412 103 1228 Core 524 | . 107 14 403 Absorbed by Shields . | . . . . Core Remaining (%) 78 | 100 57 . . Volleys Fired 135 | 6 59 6 64 Largest 2 | 1 2 2 2 Hottest 105 | 40 105 85 90 Shots Fired 203 | 6 103 12 82 Gun 199 | 6 103 12 78 Cannon . | . . . . Launcher 4 | . . . 4 Special . | . . . . Kinetic 21 | . . . 21 Thermal 100 | . 84 6 10 Explosive 4 | . . . 4 Electromagnetic 78 | 6 19 6 47 Robot Hit Streak 19 | 6 11 5 19 Robot Miss Streak 7 | . 3 4 7 Penetration Max . | . . . . Secondary Targets 2 | . 2 . . Max Gunslinging Chain 1 | . 1 . . Shots Hit Robots 140 | 6 60 10 64 Core Hits 81 | 4 25 6 46 Critical Hits 1 | . . . 1 Critical Kills . | . . . . Critical Parts Destroyed 1 | . . . 1 Melee Attacks . | . . . . Impact . | . . . . Slashing . | . . . . Piercing . | . . . . Sneak Attacks . | . . . . Combat Hostiles . | . . . . Follow-up Attacks . | . . . . Damage Inflicted 2342 | 131 891 118 1202 Guns 1906 | 73 764 118 951 Cannons . | . . . . Explosions 419 | 58 127 . 234 Melee . | . . . . Ramming 17 | . . . 17 Kinetic 200 | . . . 200 Thermal 931 | 58 690 57 126 Explosive 163 | . . . 163 Electromagnetic 1031 | 73 201 61 696 Impact . | . . . . Slashing . | . . . . Piercing . | . . . . Highest Corruption . | . . . . Average Corruption . | . . . . Corruption Purged . | . . . . Overload Shots . | . . . . Overflow Damage 5 | . 5 . . Projectiles . | . . . . Explosions 5 | . 5 . . Melee . | . . . . Knockbacks . | . . . . Impact . | . . . . Kinetic . | . . . . Secondary . | . . . . Self-Inflicted Damage 104 | . . . 104 Shots 3 | . . . 3 Rammed 4 | . . . 4 Targets Rammed 4 | . . . 4 Kicked . | . . . . Crushed . | . . . . Highest Temperature 322 | 18 322 103 306 Average Temperature 107 | 14 117 40 109 Received Heat Transfer 512 | 18 98 27 369 Siege Activations . | . . . . Robots Corrupted 1 | . . . 1 Combat Hostiles 1 | . . . 1 Parts Fried 2 | . . . 2 Impact Corruptions . | . . . . Robots Melted . | . . . . Combat Hostiles . | . . . . Parts Melted . | . . . . Heat Transferred 1945 | 150 1445 125 225 Parts Sabotaged . | . . . . Parts Stolen . | . . . . Parts Stripped . | . . . . Power Chain Reactions 5 | 1 1 . 3 Missiles Intercepted . | . . . . Alert | -11 -10 -9 -9 ------- Run | Scr Mat Mat Sto Peak Influence 545 | 25 345 138 545 Initial 61 | . 16 61 57 Average 198 | 4 194 101 285 Maximum Alert Level 2 | . 1 . 2 Low Security (%) 53 | 100 46 100 38 Level 1 36 | . 53 . 32 Level 2 9 | . . . 29 Level 3 . | . . . . Level 4 . | . . . . Level 5 . | . . . . High Security . | . . . . Max Security . | . . . . Squads Dispatched 6 | . 3 . 3 Investigation 1 | . . . 1 Extermination . | . . . . Reinforcement 5 | . 3 . 2 Assault . | . . . . Garrison . | . . . . Intercept . | . . . . Construction Impeded . | . . . . Haulers Reinforced . | . . . . Stealth | -11 -10 -9 -9 --------- Run | Scr Mat Mat Sto Distress Signals 5 | . 2 . 3 Communications Jammed . | . . . . Distress Signals . | . . . . Times Spotted 49 | 1 19 3 26 Peak Tracking Total 10 | 1 4 3 10 Tactical Retreats 2 | . 1 . 1 Traps | -11 -10 -9 -9 ------- Run | Scr Mat Mat Sto Traps Triggered . | . . . . Indirectly . | . . . . Trap Hack Attempts . | . . . . Triggered . | . . . . Disarmed . | . . . . Reprogrammed . | . . . . Reused . | . . . . Traps Extracted . | . . . . Installed . | . . . . Triggered . | . . . . Machines | -11 -10 -9 -9 ---------- Run | Scr Mat Mat Sto Machines Disabled 3 | . 1 . 2 Max in Single Turn 2 | . 1 . 2 Garrison Access 1 | . . . 1 Machines Sabotaged . | . . . . Garrisons Compromised . | . . . . Overloaded Fab Kills . | . . . . Fab Network Shutdowns . | . . . . Hacking | -11 -10 -9 -9 --------- Run | Scr Mat Mat Sto Machines Accessed 4 | . 1 . 3 Terminals 3 | . 1 . 2 Fabricators . | . . . . Repair Stations . | . . . . Recycling Units . | . . . . Scanalyzers . | . . . . Garrison Access 1 | . . . 1 Total Hacks 14 | . 5 . 9 Successful 9 | . 4 . 5 Failed 5 | . 1 . 4 Catastrophic . | . . . . Database Lockouts . | . . . . Manual . | . . . . Terminals 12 | . 5 . 7 Fabricators . | . . . . Repair Stations . | . . . . Recycling Units . | . . . . Scanalyzers . | . . . . Garrison Access 2 | . . . 2 Terminal Hacks 8 | . 4 . 4 Record 5 | . 3 . 2 Locate Traps 1 | . . . 1 Hauler Manifests 2 | . 1 . 1 Fabricator Hacks . | . . . . Repair Station Hacks . | . . . . Recycling Unit Hacks . | . . . . Scanalyzer . | . . . . Garrison Access Hacks 1 | . . . 1 Seal Access 1 | . . . 1 Unauthorized Hacks . | . . . . Terminals . | . . . . Fabricators . | . . . . Repair Stations . | . . . . Recycling Units . | . . . . Scanalyzers . | . . . . Garrison Access . | . . . . Data Cores Recovered . | . . . . Used . | . . . . Hacking Detections 4 | . 1 . 3 Full Trace Events 2 | . 1 . 1 Feedback Events . | . . . . Feedback Blocked . | . . . . Robot Schematics Acquired . | . . . . Robots Built . | . . . . Matter . | . . . . Time . | . . . . Total Robot Build Rating . | . . . . Part Schematics Acquired . | . . . . Parts Built . | . . . . Matter . | . . . . Time . | . . . . Total Part Build Rating . | . . . . Parts Repaired . | . . . . Time . | . . . . Parts Recycled . | . . . . Recycled Matter . | . . . . Retrieved Matter . | . . . . Retrieved Components . | . . . . Parts Scanalyzed . | . . . . Part Schematics Acquired . | . . . . Parts Damaged . | . . . . Bothacking | -11 -10 -9 -9 ------------ Run | Scr Mat Mat Sto Used RIF Installer . | . . . . Robots Hacked . | . . . . Non-combat . | . . . . Combat . | . . . . Robot Hacks Applied . | . . . . Relay Couplers Released . | . . . . Robots Rewired . | . . . . Allies Hacked . | . . . . Hacks Repelled . | . . . . Allies | -11 -10 -9 -9 -------- Run | Scr Mat Mat Sto Total Allies . | . . . . Largest Group . | . . . . Highest-Rated Group . | . . . . Highest-Rated Ally . | . . . . Total Orders . | . . . . Ally Attacks . | . . . . Total Damage . | . . . . Kills . | . . . . Allies Corrupted . | . . . . Allies Melted . | . . . . Intel | -11 -10 -9 -9 ------- Run | Scr Mat Mat Sto Robot Analysis Total . | . . . . Derelict Logs Recovered . | . . . . Drone Launches . | . . . . Drone Recoveries . | . . . . Exploration | -11 -10 -9 -9 ------------- Run | Scr Mat Mat Sto Turns Passed 899 | 75 440 95 289 Spaces Moved 867 | 73 445 162 187 Core 30 | 19 . . 11 Treads . | . . . . Legs . | . . . . Wheels 195 | 54 141 . . Hover . | . . . . Flight 642 | . 304 162 176 Fastest Speed 34 | 50 37 34 34 Average Speed 52 | 72 53 43 51 Slowest Speed 120 | 80 117 117 120 Overloaded Moves . | . . . . Propulsion Burnouts . | . . . . Robots Hopped 2 | . 1 1 . Cave-ins Triggered 1 | . . . 1 Exploration Rate (%) 28 | 5 73 14 22 Regions Visited 3 Branch Regions 1 Pre-discovered Areas . | . . . . Known Exits Taken 2 | . 1 1 . Unknown Exits Taken 1 | 1 . . . Scrap Searched . | . . . . Spaces Dug . | . . . . Terrain Destroyed 71 | . 8 . 63 Melee . | . . . . Projectile . | . . . . AOE 71 | . 8 . 63 Terrain Rammed . | . . . . Walls Destroyed . | . . . . Machines Disabled . | . . . . Actions | -11 -10 -9 -9 --------- Run | Scr Mat Mat Sto Total 1112 | 89 545 174 304 Wait 16 | . . . 16 Move 860 | 72 442 159 187 Hop 2 | . 1 1 . Pick Up 41 | 6 19 2 14 Fast Attach . | . . . . Attach 37 | 5 14 4 14 Detach 5 | . 2 1 2 Swap . | . . . . Drop 12 | . 8 1 3 Fire 135 | 6 59 6 64 Melee . | . . . . Ram 4 | . . . 4 Kick . | . . . . Crush . | . . . . Escape Stasis . | . . . . Rewire . | . . . . Trap . | . . . . Miscellaneous . | . . . . Route ------- -11/Scrapyard -10/Materials (discovered 2 exits: *Mat / [*Min]) -9/Materials -9/Storage History --------- Turn | Location | Event 2 | -11/Scrapyard | Met Revision 17 49 | -11/Scrapyard | Discovered new exit (range 8) 76 | -11/Scrapyard | Entered Materials 237 | -10/Materials | Discovered new exit (range 7) 242 | -10/Materials | Lost 6 parts (1p1n1u3w) 309 | -10/Materials | Build established: Mutant 467 | -10/Materials | Discovered new exit (range 15) 485 | -10/Materials | Identified exit to Materials 516 | -10/Materials | Entered another Materials area 516 | -9/Materials | Evolved 2 slots: Power x1, Propulsion x1 521 | -9/Materials | Discovered new exit (range 10) 608 | -9/Materials | Identified exit to Storage 611 | -9/Materials | Entered Storage 854 | -9/Storage | Core integrity fell below 50% 874 | -9/Storage | Destroyed 9 combat bots 901 | -9/Storage | Crushed by falling debris 901 | -9/Storage | Smashed by cave-in Last Messages --------------- 00890_ Y-45 Defender destroyed. 00890_ K-01 Serf collects debris. 00892_ U-05 Engineer lays Concrete. 00892_ Acquired Sml. Laser. 00893_ U-05 Engineer lays Concrete. 00893_ K-01 Serf collects debris. 00894_ U-05 Engineer builds a Wall. 00895_ U-05 Engineer lays Concrete. 00895_ Acquired Lgt. Treads. 00896_ K-01 Serf collects debris. 00899_ U-05 Engineer builds a Wall. 00899_ U-05 Engineer lays Concrete. 00900_ Y-45 Defender destroyed. 00901_ Acquired 34 matter. 00901_ The unstable cave ceiling collapses. 00901_ Crushed by falling debris. [Achievement: Unlikely Earthworm] 00901_ Imp. Signal Interpreter destroyed. 00901_ System corrupted by crushing effect (+2). [Achievement: First Step to Greatness] Map ----- +----------------------------------------------------+ | ?????????????????????????????????????????????????? | | ?????????????????????????????????????????????????? | | ?????????????????????????????????????????????????? | | ?????????????????????????????????????????????????? | | ?????????????????????????????????????????????????? | | ?????????????????????????????????????????????????? | | ?????????????????????????????????????????????????? | | ?????????????????????????????????????????????????? | | ?????????????????????????????????????????????????? | | ??????????????????????????T??????????????????????? | | ??????????????????????????"??????????????????????? | | ?????????????????????????? ??????????????????????? | | ?????????????????????????? ??????????????????????? | | ?????????????????????????#+#?????????????????????? | | ????????????????????????? ?????????????????????? | | ????????????????????????? ?????????????????????? | | ????????????????????????? [ ?????????????????????? | | ?????????????????????????#=#?????????????????????? | | ?????????????????????????#[#?????????????????????? | | ?????????????????????????#=+?????????????????????? | | ?????????????????????????#%#?????????????????????? | | ?????????????????????????#!#?????????????????????? | | ?????????????????????????#!#?????????????????????? | | ????????????????????????##%##????????????????????? | | ????????????????????????##=##????????????????????? | | ????????????????????????#@uk#????????????????????? | | ????????????????????????##u##????????????????????? | | ???????????????????????###u###???????????????????? | | ???????????????????????#*#[# ##??????????????????? | | ???????????????????????###=# #??????????????????? | | ??????????????????????# " =# #??????????????????? | | ??????????????????????# " ! # #?????????????????? | | ?????????????????????# = " #?????????????????? | | ?????????????????????# #=*" ##?????????????????? | | ?????????????????????## !#%%" ??????????????????? | | ??????????????????????## #* "# #?????????????????? | | ???????????????????????# %# ########???????????? | | ##########?????????????# #!# # #???????????? | | # ####???????###### ####!! #???????????? | | # """ """#??????####### ####*[ #????^??????? | | # """ R"#??????#= %% %[%/*=* #???????????? | | # """ """#??????#=#####*####=![= #???^^??????? | | # ####??????# #####%#??#!!%=[ #????^??????? | | # "" #?????????# #???# #??####+###^???^??????? | | # "G #?????#####+##### #?????? #????????????? | | %! "" #?????# * + ??????? ???????????? | | # ####### [[= T ###????????###??????????? | | #####+#### # [%[ #???????????????????????? | | !%# [! #???????????????????????? | | *[+ !! #???????????????????????? | +----------------------------------------------------+ Best States ------------- Heat Dissipation 28 Coolant Potential 50 Energy Generation 17 Energy Capacity 415 Matter Stores 300 Matter Capacity 300 Sight Range 16 Robot Scan Range 13 Terrain Scan Density 10 Heat Shielding 75 Evasion (%) 63 Recoil Reduction 1 Item Schematics ----------------- None Robot Schematics ------------------ None Fabricated ------------ Nothing Alien Tech Used ----------------- None Achievements -------------- Crack Shot First Step to Greatness I Spy Loot Pinata One Hack Too Far Power Corrupts Risk Taker Shopping List Storm Trooper Uninvited Guest Unlikely Earthworm Challenges ------------ None Game ------ Seed BladeHardlightLoader Manual? 0 Play Time 00:23:53 Cumulative 0.7 hours Start 2021.05.01 @ 19:50:27 End 2021.05.01 @ 20:57:32 Sessions 2 Manual Loads 0 Difficulty Rogue Special Mode None Game No. 1 Rogue 1 Adventurer 0 Explorer 0 Win Type - Total 0 Types 0/0/0/0/0/0/0/0/0 Lore% 0 Gallery% 2 Achievement% 4 Wizard Run 0 Options --------- ASCII 0 Keyboard 1 Movement Numpad Keybinds 0 Fullscreen 1 Font 18/SmallcapsGlow Map View 76x50 Tactical HUD 1 Map Filters NONE Filters NONE Steam 1 RUN: 014674ae-1e9c-4864-a55d-779991112681